Cogmind - Beta 13 @@@ ROGUE MODE // 2024.04.05 @ 13:50:17 Player: Vriska Result: Destroyed self with Subdweller Shrapnel Launcher Performance ------------- Evolutions (0) 0 Regions Visited (2) 400 Robots Destroyed (34) 170 Value Destroyed (745) 745 Prototype IDs (3) 60 Alien Tech Used (0) 0 Bonus (0) 0 TOTAL SCORE: 1375 Bonus ------- None Cogmind --------- Core Integrity 0/250 Matter 78/300 Energy 200/200 System Corruption 3% Temperature Cool (0) Movement Rolling (95) Ox1 Location -10/Subcaves Parts ------- > --- POWER (1) -------- Subdweller Power Source > --- PROPULSION (2) --- Wheel > --- UTILITY (2) ------ Improved Terrain Scanner Terrain Scan Processor > --- WEAPON (2) ------- Makeshift Shrapnel Gun Subdweller Shrapnel Launcher > --- INVENTORY (5) ---- Makeshift Light Armor Plating Makeshift System Shield Datajack Flamer Peak State ------------ > --- POWER ------------ Subdweller Power Source > --- PROPULSION ------- Wheel Wheel > --- UTILITY ---------- Improved Terrain Scanner Terrain Scan Processor > --- WEAPON ----------- Makeshift Shrapnel Gun Subdweller Shrapnel Launcher > --- INVENTORY -------- Makeshift Light Armor Plating Makeshift System Shield Datajack Flamer [Rating: 16] Favorites ----------- Power Ion Engine Engine Ion Engine Propulsion Wheel Treads Light Treads Leg Aluminum Leg Wheel Wheel Utility Improved Terrain Scanner Device Improved Terrain Scanner Storage Small Storage Unit Processor Terrain Scan Processor Weapon EM Pulse Gun Energy Gun EM Pulse Gun Ballistic Gun Makeshift Shrapnel Gun Launcher Subdweller Shrapnel Launcher Special Weapon Flamer Special Melee Weapon Datajack Build | -11 -10 -10 ------- Run | Yrd Mat Sub Slots Evolved . | . . . Power . | . . . Propulsion . | . . . Utility . | . . . Weapon . | . . . Parts Attached 43 | 7 23 13 Power 6 | 1 3 2 Engine 6 | 1 3 2 Core . | . . . Reactor . | . . . Propulsion 11 | 5 4 2 Treads 2 | 2 . . Leg 4 | 3 1 . Wheel 5 | . 3 2 Hover . | . . . Flight . | . . . Utility 6 | 1 5 . Device 3 | . 3 . Storage 2 | 1 1 . Processor 1 | . 1 . Hackware . | . . . Protection . | . . . Artifact . | . . . Weapon 20 | . 11 9 Energy Gun 10 | . 8 2 Energy Cannon . | . . . Ballistic Gun 2 | . 1 1 Ballistic Cannon . | . . . Launcher 5 | . 1 4 Special Weapon 2 | . 1 1 Impact Weapon . | . . . Slashing Weapon . | . . . Piercing Weapon . | . . . Special Melee Weapon 1 | . . 1 Unidentified Prototypes . | . . . Corrupted Parts 1 | . 1 . System Corruption 1 | . 1 . Parts Lost 11 | . 6 5 Power 3 | . 2 1 Propulsion 3 | . 2 1 Utility 1 | . 1 . Weapon 4 | . 1 3 Highest Loss Streak 5 | . 5 2 To Critical Strikes . | . . . Average Slot Usage (%) 86 | . 82 96 Engine 9 | . 9 10 Leg 7 | . 10 . Wheel 17 | . 12 28 Device 12 | . 11 14 Storage 2 | . 3 . Processor 8 | . 5 14 Energy Gun 20 | . 26 4 Launcher 1 | . . 3 Special Weapon 1 | . . 5 Special Melee Weapon 3 | . . 11 Naked Turns 5 | . 5 . Heaviest Build 16 | 10 14 16 Greatest Support 40 | 40 20 20 Greatest Overweight (x) 2 | . 2 . Average Overweight (x) . | . . . Largest Inventory Capacity 8 | 8 8 5 Average Capacity 5 | 6 5 5 Most Carried 5 | 5 5 5 Average Carried 2 | 3 2 3 Final Capacity 8 | 8 5 5 Final Carried 4 | 4 4 4 Class Distribution -------------------- 54% | Scavenger-Mutant 45% | Mutant Dominant Class ---------------- Mutant | -10/Materials Scavenger-Mutant | -10/Subcaves Resources | -11 -10 -10 ----------- Run | Yrd Mat Sub Matter Collected 680 | 249 264 167 Remotely . | . . . Salvage Created 962 | . 852 110 Parts 73 | . 65 8 Haulers Intercepted . | . . . Recyclers Shooed 2 | . 2 . Parts Field Recycled . | . . . Retrieved Matter . | . . . Parts Self-Destructed 3 | . . 3 Prevented . | . . . Kills | -11 -10 -10 ------- Run | Yrd Mat Sub Combat Hostiles Destroyed 19 | . 15 4 Guns 13 | . 13 . AOE 6 | . 2 4 Classes Destroyed 8 | . 7 1 Worker 6 | . 6 . Builder 2 | . 2 . Tunneler 3 | . 3 . Operator 1 | . 1 . Watcher 3 | . 3 . Swarmer 3 | . 3 . Grunt 12 | . 12 . Subdweller 4 | . . 4 Best Kill Streak 4 | . 4 2 Combat Bots Only 3 | . 3 2 Max Kills in Single Turn 2 | . 2 1 Gunslinging . | . . . Exploded 1 | . 1 1 Melee . | . . . Uniques/NPCs Destroyed . | . . . Combat | -11 -10 -10 -------- Run | Yrd Mat Sub Hostile Shots Fired 113 | . 95 18 Missed 36 | . 28 8 Damage Taken 1142 | . 785 357 Core 253 | . 174 79 Absorbed by Shields . | . . . Core Remaining (%) 100 | 100 . . Volleys Fired 119 | . 97 22 Largest 2 | . 2 2 Hottest 100 | . 90 100 Shots Fired 200 | . 174 26 Gun 175 | . 167 8 Cannon . | . . . Launcher 19 | . 3 16 Special 6 | . 4 2 Kinetic 5 | . . 5 Thermal 120 | . 116 4 Explosive 14 | . 3 11 Electromagnetic 61 | . 55 6 Robot Hit Streak 16 | . 10 16 Robot Miss Streak 6 | . 6 . Penetration Max . | . . . Secondary Targets 2 | . 2 . Max Gunslinging Chain 1 | . 1 . Shots Hit Robots 104 | . 86 18 Core Hits 50 | . 42 8 Critical Kills . | . . . Critical Parts Destroyed . | . . . Critical Strikes 3 | . 3 . Burn 3 | . 3 . Melee Attacks 2 | . . 2 Impact . | . . . Slashing . | . . . Piercing . | . . . Sneak Attacks . | . . . Combat Hostiles . | . . . Follow-up Attacks . | . . . Damage Inflicted 1842 | . 1210 632 Guns 1190 | . 1094 96 Cannons . | . . . Explosions 652 | . 116 536 Melee . | . . . Ramming . | . . . Kinetic 58 | . . 58 Thermal 843 | . 802 41 Explosive 491 | . 13 478 Electromagnetic 450 | . 395 55 Impact . | . . . Slashing . | . . . Piercing . | . . . Highest Corruption 3 | . 3 3 Average Corruption 2 | . 2 3 Corruption Purged . | . . . Corruption Blocked . | . . . Effects 37 | . 24 13 Message Errors 10 | . 9 1 Matter Fused 9 | . 5 4 Heat Flow Errors 2 | . 1 1 Energy Discharges 6 | . 4 2 Data Loss (minor) 4 | . 1 3 Data Loss (major) 1 | . . 1 Misfires 3 | . 3 . Alerts 2 | . 1 1 Overload Shots . | . . . Overflow Damage 3 | . . 3 Projectiles . | . . . Explosions 3 | . . 3 Melee . | . . . Knockbacks . | . . . Impact . | . . . Kinetic . | . . . Secondary . | . . . Self-Inflicted Damage 91 | . 38 53 Shots 5 | . 2 3 Rammed . | . . . Targets Rammed . | . . . Kicked . | . . . Crushed . | . . . Highest Temperature 242 | . 242 176 Average Temperature 64 | . 64 96 Received Heat Transfer 426 | . 360 66 Siege Activations . | . . . Robots Corrupted 1 | . 1 . Combat Hostiles . | . . . Parts Fried 5 | . 5 . Impact Corruptions . | . . . Robots Melted 1 | . 1 . Combat Hostiles . | . . . Parts Melted 5 | . 5 . Heat Transferred 2183 | . 2133 50 Parts Sabotaged . | . . . Parts Stolen . | . . . Parts Stripped . | . . . Power Chain Reactions 3 | . 3 . Alert | -11 -10 -10 ------- Run | Yrd Mat Sub Peak Influence 206 | . 206 . Initial . | . . . Average 68 | . 73 . Maximum Alert Level 1 | . 1 . Low Security (%) 99 | 100 99 . Level 1 . | . . . Level 2 . | . . . Level 3 . | . . . Level 4 . | . . . Level 5 . | . . . High Security . | . . . Max Security . | . . . Squads Dispatched 5 | . 5 . Investigation 4 | . 4 . Extermination . | . . . Reinforcement 1 | . 1 . Assault . | . . . Garrison . | . . . Intercept . | . . . Searches Triggered . | . . . Construction Impeded . | . . . Haulers Reinforced . | . . . Active Scanning Responses . | . . . Cargo Convoy Interrupts . | . . . Stealth | -11 -10 -10 --------- Run | Yrd Mat Sub Distress Signals . | . . . Communications Jammed . | . . . Distress Signals . | . . . Times Spotted 28 | . 24 4 Peak Tracking Total 4 | . 4 2 Tactical Retreats . | . . . Traps | -11 -10 -10 ------- Run | Yrd Mat Sub Traps Triggered 3 | . 3 . Indirectly 1 | . 1 . Trap Hack Attempts . | . . . Triggered . | . . . Disarmed . | . . . Reprogrammed . | . . . Reused . | . . . Traps Extracted . | . . . Installed . | . . . Triggered 1 | . 1 . Machines | -11 -10 -10 ---------- Run | Yrd Mat Sub Machines Disabled 2 | . 2 . Max in Single Turn 2 | . 2 . Machines Repaired . | . . . Machines Dismantled . | . . . Machines Sabotaged . | . . . Overloaded Fab Kills . | . . . Hacking | -11 -10 -10 --------- Run | Yrd Mat Sub Machines Accessed 7 | . 7 . Terminals 5 | . 5 . Fabricators . | . . . Repair Stations . | . . . Recycling Units 2 | . 2 . Scanalyzers . | . . . Garrison Access . | . . . Total Hacks 13 | . 13 . Successful 10 | . 10 . Failed 3 | . 3 . Catastrophic . | . . . Database Lockouts . | . . . Manual . | . . . Terminals 10 | . 10 . Fabricators . | . . . Repair Stations . | . . . Recycling Units 3 | . 3 . Scanalyzers . | . . . Garrison Access . | . . . Terminal Hacks 7 | . 7 . Prototype ID Bank 2 | . 2 . Emergency Access Points 2 | . 2 . Alert Level 1 | . 1 . Locate Traps 1 | . 1 . Investigation Status 1 | . 1 . Fabricator Hacks . | . . . Repair Station Hacks . | . . . Recycling Unit Hacks 3 | . 3 . Report Inventory 3 | . 3 . Scanalyzer . | . . . Garrison Access Hacks . | . . . Unauthorized Hacks . | . . . Terminals . | . . . Fabricators . | . . . Repair Stations . | . . . Recycling Units . | . . . Scanalyzers . | . . . Garrison Access . | . . . Data Cores Recovered . | . . . Used . | . . . Hacking Detections 4 | . 4 . Full Trace Events 2 | . 2 . Feedback Events . | . . . Feedback Blocked . | . . . Robot Schematics Acquired . | . . . Robots Built . | . . . Authchips . | . . . Time . | . . . Total Robot Build Rating . | . . . Part Schematics Acquired . | . . . Parts Built . | . . . Authchips . | . . . Time . | . . . Total Part Build Rating . | . . . Parts Repaired . | . . . Time . | . . . Parts Recycled . | . . . Recycled Matter . | . . . Retrieved Matter . | . . . Retrieved Components . | . . . Parts Scanalyzed . | . . . Part Schematics Acquired . | . . . Parts Damaged . | . . . Bothacking | -11 -10 -10 ------------ Run | Yrd Mat Sub Used RIF Installer . | . . . Robots Hacked 1 | . . 1 Non-combat . | . . . Combat 1 | . . 1 Robot Hacks Applied 2 | . . 2 parse_system 2 | . . 2 Relay Couplers Released . | . . . Fabnet Peak Effective % . | . . . Robots Rewired . | . . . Allies Hacked . | . . . Hacks Repelled . | . . . Allies | -11 -10 -10 -------- Run | Yrd Mat Sub Total Allies . | . . . Largest Group . | . . . Highest-Rated Group . | . . . Highest-Rated Ally . | . . . Total Orders . | . . . Ally Attacks . | . . . Total Damage . | . . . Kills . | . . . Allies Corrupted . | . . . Allies Melted . | . . . Intel | -11 -10 -10 ------- Run | Yrd Mat Sub Robot Analysis Total . | . . . Derelict Logs Recovered . | . . . Drone Launches . | . . . Drone Recoveries . | . . . Exploration | -11 -10 -10 ------------- Run | Yrd Mat Sub Turns Passed 2316 | 110 1524 682 Spaces Moved 1976 | 83 1156 737 Core 207 | 18 189 . Treads 11 | 11 . . Legs 387 | 54 333 . Wheels 1371 | . 634 737 Hover . | . . . Flight . | . . . Fastest Speed 50 | 50 50 80 Average Speed 90 | 110 95 80 Slowest Speed 160 | 160 150 80 Overloaded Moves . | . . . Propulsion Burnouts . | . . . Robots Hopped . | . . . Cave-ins Triggered . | . . . Exploration Rate (%) 41 | 5 94 24 Regions Visited 2 Branch Regions 1 Pre-discovered Areas . | . . . Known Exits Taken . | . . . Unknown Exits Taken 2 | 1 1 . Scrap Searched 4 | . . 4 Spaces Dug . | . . . Terrain Destroyed 138 | . 29 109 Melee . | . . . Projectile . | . . . AOE 138 | . 29 109 Terrain Rammed . | . . . Walls Destroyed . | . . . Machines Disabled . | . . . Actions | -11 -10 -10 --------- Run | Yrd Mat Sub Total 2305 | 101 1405 799 Wait 102 | . 89 13 Move 1974 | 82 1155 737 Hop . | . . . Pick Up 43 | 10 25 8 Fast Attach . | . . . Attach 21 | 4 13 4 Detach . | . . . Swap 22 | 3 10 9 Drop 22 | 2 16 4 Fire 119 | . 97 22 Melee 2 | . . 2 Ram . | . . . Kick . | . . . Crush . | . . . Escape Stasis . | . . . Rewire . | . . . Trap . | . . . Miscellaneous . | . . . Route ------- -11/Scrapyard -10/Materials (discovered 5 exits: [*Mat x3] / [*Min] / [*Sub]) -10/Subcaves History --------- Turn | Location | Event 22 | -11/Scrapyard | Discovered new exit (range 16) 111 | -11/Scrapyard | Entered Materials 312 | -10/Materials | Build established: Mutant 375 | -10/Materials | Discovered new exit (range 6) 522 | -10/Materials | Discovered new exit (range 16) 693 | -10/Materials | Core integrity fell below 50% 749 | -10/Materials | Lost 5 parts (1p2n1u1w) 759 | -10/Materials | Discovered new exit (range 15) 1091 | -10/Materials | Discovered new exit (range 12) 1328 | -10/Materials | Build established: Scavenger-Mutant 1597 | -10/Materials | Discovered new exit (range 13) 1635 | -10/Materials | Entered Subcaves 1810 | -10/Subcaves | Core integrity fell below 20% 1886 | -10/Subcaves | Shifting Twisted Machinery released Mak. Light Armor Plating 2036 | -10/Subcaves | Shifting Twisted Machinery released Sub. Power Source 2079 | -10/Subcaves | Shifting Twisted Machinery released Sub. Shrapnel Launcher 2317 | -10/Subcaves | Destroyed self with Subdweller Shrapnel Launcher Last Messages --------------- Found 31 Matter. Acquired 31 matter. Searching scrap... Found Mak. System Shield. Found 14 Matter. Searching scrap... Found Mak. Shrapnel Gun. Found 29 Matter. Acquired 29 matter. Acquired 14 matter. Acquired Mak. System Shield. Dropped Wheel. Subatomizers dissect the Wheel. Acquired Mak. Shrapnel Gun. Subatomizers dissect the Wheel, destroying it. System corrupted: Component data lost. Wheel destroyed. Destroyed Wheel. 9G-YEM(R): "GOODGOOD!" 9G-YEM(R) destroyed. Map ----- +----------------------------------------------------+ | ?????#?#?#????#?##?#??????### ### ## " | | ?#????#???#?##??#####?###?### ### ##### " | | ??????????##??##?#?####?#?## ##### ##?### | | ????????????##?#???#??##??# ##### ####### | | ?????##?#????????#???????## #?#?# ## ## # | | #?????????????#?##??#??#??# ##??# ## # | | ????????????#????????##???## ##?### # & | | ?????????????????#???#?##??# ###???## & | | ?????????????????????#????############ | | ????????????????????????#?#???#???##?### | | ?????????????????????###?####??#####?## # #### | | ?????????????????????????#?#??##?##?#### #### | | ???????????????#?#??##????????####?##### ### | | ????#???????????#?#?#?##?##?###??##?#?# # | | ?????????????????#?????????#?####?##??### | | ????????#?#?#???##?????????????#?######## # # | | ??????#???#??##?##? "??""???????##??##?## ### # | | ??? ??#?###?##??##" ? "?? "??##?######## #?# # | | ?? ?##?#??##?######? ? ?? ??###??###### #?# ## | | ?? ??##??####?##" + ? ??#;;#?####### #### #? | | ???#??#?########""#?######## ##?####### #### ### | | ?#?#???####???# ###; ########## ## ### | | ????##?#?####?##< #####?### #### #?# | | ???##????##??### ! ####?#### ### ### | | ??#?#??#??####?##< != ######## #?# ## | | ???#????##########< @ [% ##?#?## #### ### | | ???#??##?##??######### ;; ######## ### #? | | ??#?#?##?##### ### #;;;;#### # ###" ## | | ##???######## # # # # ### | | ## # ### " ### # "#?? | | " " ########### ## "#?# | | # " "" #??#?###?### #### ###?? | | ??# ## # ## ###????############ ## "#?##? | | ??##?#################?####?###?# ## ######## | | ??#??#?####???#?#?#??####???##### # #####?#? | | ??????##???##?##??####?##?########### #######?### | | ????#??##???##########?########??#######??####?#? | | ??#?????#???###?####?##?#####???#??#?##?#????##?#? | | ????#?#??"????##?#?#######?####?##?#??##?#?####??# | | ?" ???????????#?#???#???#?#####?#######?#?###? #?# | | ?"???? ?????""?#??#?????####?##?#?#??####?#?##???# | | ?? ? ? ????????#?????????#??????#?###?######??###? | | ??????????#????#???##?#?###??#?##??#??#?#??##???# | | ? ????#???##?#????###??#??###??#?###?#?#?????#? ? | | ???? ????????#???#???????#??#???###?####?##??#?#?# | | ???????????#???????????????????????#######???????? | | ????#???#?????#??????????????????????#??#??????#?? | | ?????????????????????????????????????????????????? | | ?????????????????????????????????????????????????? | | ?????????????????????????????????????????????????? | +----------------------------------------------------+ Best States ------------- Heat Dissipation 25 Energy Generation 15 Energy Capacity 250 Matter Stores 300 Matter Capacity 300 Sight Range 16 Robot Scan Range 14 Terrain Scan Range 16 Terrain Scan Density 85 Evasion (%) 55 Recoil Reduction 2 Item Schematics ----------------- None Robot Schematics ------------------ None Fabricated ------------ Nothing Alien Tech Used ----------------- None Achievements -------------- Power Corrupts Challenges ------------ None Game ------ Seed ShadePlasmaMallet Manual? 0 Play Time 00:25:21 Cumulative 4.4 hours Start 2024.04.05 @ 13:27:06 End 2024.04.05 @ 13:50:17 Sessions 1 Manual Loads 0 Difficulty Rogue Special Mode None Game No. 10 Rogue 10 Adventurer 0 Explorer 0 Win Type - Total 0 Types 0/0/0/0/0/0/0/0/0 Lore% 10 Gallery% 8 Achievement% 8 Wizard Run 0 Options --------- Layout 1 ASCII 0 Keyboard 0 Movement Arrows Keybinds 0 Fullscreen 1 Font 24/Smallcaps Map View 50x35 Zoom Use 0% Tactical HUD 0 Map Filters NONE Filters NONE Steam 1 RUN: e55c555f-1968-4246-a48e-361841044769